[Event "Early-Titled-Tuesday-Blitz-March-05-2024"]
[Site "Chess.com"]
[Date "2024.03.05"]
[Round "6"]
[White "Herman-NY"]
[Black "Binary010"]
[Result "0-1"]
[WhiteElo "2524"]
[BlackElo "2814"]
[TimeControl "180+1"]
[EndTime "9:09:54 PST"]
[Termination "Binary010 won by resignation"]

1. e4 {[%clk 0:03:00.9]} 1... c5 {[%clk 0:02:59.9]} 2. Nf3 {[%clk 0:03:01]} 2...
e6 {[%clk 0:03:00.3]} 3. d4 {[%clk 0:03:01.2]} 3... cxd4 {[%clk 0:03:01.2]} 4.
Nxd4 {[%clk 0:03:01.6]} 4... Nf6 {[%clk 0:03:01.6]} 5. Nc3 {[%clk 0:03:01.7]}
5... Nc6 {[%clk 0:03:01]} 6. Nxc6 {[%clk 0:02:48.2]} 6... bxc6 {[%clk
0:03:01.9]} 7. e5 {[%clk 0:02:48.6]} 7... Nd5 {[%clk 0:03:01.9]} 8. Ne4 {[%clk
0:02:49.2]} 8... Qc7 {[%clk 0:03:01.2]} 9. f4 {[%clk 0:02:48.9]} 9... Qb6 {[%clk
0:03:01.5]} 10. c4 {[%clk 0:02:46.4]} 10... Ne3 {[%clk 0:02:54]} 11. Qd3 {[%clk
0:02:28.6]} 11... Bb4+ {[%clk 0:02:31.5]} 12. Bd2 {[%clk 0:02:13]} 12... O-O
{[%clk 0:02:31.2]} 13. a3 {[%clk 0:01:20.5]} 13... Bxd2+ {[%clk 0:02:21.2]} 14.
Qxd2 {[%clk 0:01:20.1]} 14... Nxf1 {[%clk 0:01:42.2]} 15. Rxf1 {[%clk 0:01:21]}
15... c5 {[%clk 0:01:39.2]} 16. Nd6 {[%clk 0:01:17.4]} 16... Ba6 {[%clk
0:01:36]} 17. b4 {[%clk 0:01:08.7]} 17... Rab8 {[%clk 0:01:35.4]} 18. b5 {[%clk
0:01:07.1]} 18... Bb7 {[%clk 0:01:35.1]} 19. a4 {[%clk 0:01:05.3]} 19... f6
{[%clk 0:01:32.5]} 20. Ra3 {[%clk 0:00:52.8]} 20... Qd8 {[%clk 0:01:20.3]} 21.
Rg3 {[%clk 0:00:44]} 21... Ba8 {[%clk 0:01:02.9]} 22. f5 {[%clk 0:00:33.6]}
22... fxe5 {[%clk 0:00:57.5]} 23. fxe6 {[%clk 0:00:25.3]} 23... Rxf1+ {[%clk
0:00:57.3]} 24. Kxf1 {[%clk 0:00:26.1]} 24... Qf6+ {[%clk 0:00:44.2]} 25. Ke1
{[%clk 0:00:19.6]} 25... Rf8 {[%clk 0:00:35.2]} 26. Qe2 {[%clk 0:00:15.5]} 26...
Qxe6 {[%clk 0:00:35.4]} 27. Qg4 {[%clk 0:00:08.9]} 27... Qxg4 {[%clk 0:00:30.8]}
28. Rxg4 {[%clk 0:00:09.8]} 28... Rf6 {[%clk 0:00:31.1]} 29. Nc8 {[%clk
0:00:08.7]} 29... a6 {[%clk 0:00:28.2]} 30. Rg3 {[%clk 0:00:06.9]} 30... Bb7
{[%clk 0:00:24.4]} 31. Na7 {[%clk 0:00:06]} 31... Kf7 {[%clk 0:00:15.4]} 32. Rd3
{[%clk 0:00:06]} 32... Ke7 {[%clk 0:00:15.8]} 33. g3 {[%clk 0:00:05]} 33... g5
{[%clk 0:00:12.6]} 34. Ke2 {[%clk 0:00:05.3]} 34... Rh6 {[%clk 0:00:12.9]} 35.
h4 {[%clk 0:00:04.6]} 35... gxh4 {[%clk 0:00:13.1]} 36. gxh4 {[%clk 0:00:05.5]}
36... Rxh4 {[%clk 0:00:13.5]} 37. Rg3 {[%clk 0:00:06.2]} 37... Kf6 {[%clk
0:00:11.8]} 38. Rg8 {[%clk 0:00:05.3]} 38... Rxc4 {[%clk 0:00:10.4]} 39. Rb8
{[%clk 0:00:05.9]} 39... Be4 {[%clk 0:00:09.8]} 40. b6 {[%clk 0:00:05]} 40...
Rxa4 {[%clk 0:00:09.1]} 41. Nc8 {[%clk 0:00:05.3]} 41... Rb4 {[%clk 0:00:08.4]}
42. Nd6 {[%clk 0:00:05.7]} 42... Bc6 {[%clk 0:00:07.5]} 43. b7 {[%clk
0:00:04.7]} 43... Ke7 {[%clk 0:00:06.6]} 44. Nc8+ {[%clk 0:00:04.8]} 44... Ke6
{[%clk 0:00:05.3]} 45. Na7 {[%clk 0:00:04.1]} 45... Bxb7 {[%clk 0:00:04.8]} 46.
Rh8 {[%clk 0:00:04.8]} 46... d6 {[%clk 0:00:02.7]} 47. Rxh7 {[%clk 0:00:05.1]}
47... Kd5 {[%clk 0:00:03.5]} 48. Rc7 {[%clk 0:00:03.9]} 48... a5 {[%clk
0:00:03.9]} 49. Nc8 {[%clk 0:00:03.8]} 49... Bxc8 {[%clk 0:00:03.9]} 50. Rxc8
{[%clk 0:00:04.7]} 50... a4 {[%clk 0:00:04.5]} 51. Ra8 {[%clk 0:00:05.5]} 51...
e4 {[%clk 0:00:04.7]} 52. Kd2 {[%clk 0:00:06.3]} 52... Kd4 {[%clk 0:00:05.3]}
53. Rd8 {[%clk 0:00:06.5]} 53... d5 {[%clk 0:00:06]} 54. Re8 {[%clk 0:00:07.4]}
54... Rb2+ {[%clk 0:00:05.9]} 55. Kc1 {[%clk 0:00:08]} 55... Rh2 {[%clk
0:00:06.3]} 56. Ra8 {[%clk 0:00:08.4]} 56... Kc3 {[%clk 0:00:03.4]} 57. Kb1
{[%clk 0:00:09.3]} 57... e3 {[%clk 0:00:02.9]} 58. Rxa4 {[%clk 0:00:09.6]} 58...
d4 {[%clk 0:00:03.6]} 59. Ra3+ {[%clk 0:00:10]} 59... Kc4 {[%clk 0:00:03.9]} 60.
Ra4+ {[%clk 0:00:10]} 60... Kd5 {[%clk 0:00:04.7]} 61. Ra2 {[%clk 0:00:09.5]}
61... Rxa2 {[%clk 0:00:04.1]} 0-1

[Event "Early-Titled-Tuesday-Blitz-March-05-2024"]
[Site "Chess.com"]
[Date "2024.03.05"]
[Round "6"]
[White "janhelmer03"]
[Black "amanjazu"]
[Result "0-1"]
[WhiteElo "2399"]
[BlackElo "2534"]
[TimeControl "180+1"]
[EndTime "9:09:54 PST"]
[Termination "amanjazu won by resignation"]

1. d4 {[%clk 0:02:56]} 1... Nf6 {[%clk 0:03:00.6]} 2. Nf3 {[%clk 0:02:55.9]}
2... g6 {[%clk 0:03:01.1]} 3. c4 {[%clk 0:02:55.5]} 3... Bg7 {[%clk 0:03:01.6]}
4. Nc3 {[%clk 0:02:56]} 4... O-O {[%clk 0:03:02.5]} 5. e4 {[%clk 0:02:56.4]}
5... d6 {[%clk 0:03:03.4]} 6. Be2 {[%clk 0:02:56.9]} 6... c5 {[%clk 0:03:03.1]}
7. O-O {[%clk 0:02:56.6]} 7... Bg4 {[%clk 0:03:02.5]} 8. d5 {[%clk 0:02:56.3]}
8... Nbd7 {[%clk 0:03:01.9]} 9. Ne1 {[%clk 0:02:56.3]} 9... Bxe2 {[%clk
0:03:01.3]} 10. Qxe2 {[%clk 0:02:57.2]} 10... Ne8 {[%clk 0:03:01.9]} 11. Nd3
{[%clk 0:02:57.6]} 11... Nc7 {[%clk 0:03:02.8]} 12. Bg5 {[%clk 0:02:53.5]} 12...
h6 {[%clk 0:02:58.3]} 13. Be3 {[%clk 0:02:51.9]} 13... Rb8 {[%clk 0:02:57.7]}
14. a4 {[%clk 0:02:51.8]} 14... a6 {[%clk 0:02:54.2]} 15. Qd2 {[%clk 0:02:48.6]}
15... b5 {[%clk 0:02:51]} 16. axb5 {[%clk 0:02:47.7]} 16... axb5 {[%clk
0:02:51.9]} 17. Nxb5 {[%clk 0:02:40.4]} 17... Nxb5 {[%clk 0:02:52.8]} 18. cxb5
{[%clk 0:02:40.9]} 18... Rxb5 {[%clk 0:02:53.7]} 19. Bxh6 {[%clk 0:02:40.5]}
19... Bxh6 {[%clk 0:02:42.6]} 20. Qxh6 {[%clk 0:02:41.4]} 20... Nf6 {[%clk
0:02:37.2]} 21. Ra4 {[%clk 0:02:30.3]} 21... Rb3 {[%clk 0:02:31.7]} 22. e5
{[%clk 0:02:18]} 22... Nh5 {[%clk 0:02:04]} 23. Rh4 {[%clk 0:02:07.3]} 23...
Rxd3 {[%clk 0:01:25.5]} 24. e6 {[%clk 0:01:59.1]} 24... Rd4 {[%clk 0:01:06.7]}
25. g4 {[%clk 0:01:52.5]} 25... Qe8 {[%clk 0:00:42.2]} 26. f4 {[%clk 0:01:44.9]}
26... fxe6 {[%clk 0:00:38.6]} 27. gxh5 {[%clk 0:01:45.1]} 27... Rf6 {[%clk
0:00:39]} 28. Kh1 {[%clk 0:01:41.9]} 28... Qf8 {[%clk 0:00:13.1]} 29. Qg5 {[%clk
0:01:42]} 29... Rxd5 {[%clk 0:00:12.2]} 30. Qg4 {[%clk 0:01:38.6]} 30... Qg7
{[%clk 0:00:11.6]} 31. h6 {[%clk 0:01:35.7]} 31... Qh7 {[%clk 0:00:10.9]} 32.
Ra1 {[%clk 0:01:34.9]} 32... Kf7 {[%clk 0:00:11.4]} 33. Ra8 {[%clk 0:01:29.3]}
33... Rd4 {[%clk 0:00:10]} 34. Qg5 {[%clk 0:01:27]} 34... Rf5 {[%clk 0:00:09]}
35. Qxe7+ {[%clk 0:01:21.7]} 35... Kxe7 {[%clk 0:00:09.9]} 36. Ra7+ {[%clk
0:01:22]} 36... Kf6 {[%clk 0:00:09.5]} 37. Rxh7 {[%clk 0:01:22.9]} 37... Rfxf4
{[%clk 0:00:10]} 38. Rxf4+ {[%clk 0:01:16.2]} 38... Rxf4 {[%clk 0:00:10.9]} 39.
Rd7 {[%clk 0:01:16.9]} 39... Rh4 {[%clk 0:00:11.3]} 40. h7 {[%clk 0:01:15.5]}
40... Ke5 {[%clk 0:00:11.7]} 41. Kg2 {[%clk 0:01:15.2]} 41... d5 {[%clk
0:00:11.8]} 42. Kg3 {[%clk 0:01:15.8]} 42... Rh6 {[%clk 0:00:12.5]} 43. h4
{[%clk 0:01:15.4]} 43... Kf5 {[%clk 0:00:11.6]} 44. Rc7 {[%clk 0:01:13.9]} 44...
c4 {[%clk 0:00:11.6]} 45. Rf7+ {[%clk 0:01:13.4]} 45... Ke4 {[%clk 0:00:10.3]}
46. Kg4 {[%clk 0:01:13.9]} 46... Rh5 {[%clk 0:00:10.8]} 47. Re7 {[%clk
0:01:08.2]} 47... e5 {[%clk 0:00:10.4]} 48. Rc7 {[%clk 0:00:55.9]} 48... Kd4
{[%clk 0:00:09.1]} 49. Rd7 {[%clk 0:00:55.1]} 49... e4 {[%clk 0:00:08.5]} 50.
Re7 {[%clk 0:00:47.2]} 50... e3 {[%clk 0:00:08.2]} 51. Kf3 {[%clk 0:00:45.5]}
51... Rxh4 {[%clk 0:00:06.6]} 52. Rxe3 {[%clk 0:00:45.7]} 52... Rxh7 {[%clk
0:00:06.4]} 53. Re6 {[%clk 0:00:45.6]} 53... Rh3+ {[%clk 0:00:06.5]} 54. Kg2
{[%clk 0:00:45.5]} 54... Re3 {[%clk 0:00:06.5]} 55. Rb6 {[%clk 0:00:44.6]} 55...
Rb3 {[%clk 0:00:06.2]} 56. Rxg6 {[%clk 0:00:42.4]} 56... Rxb2+ {[%clk
0:00:06.4]} 57. Kf3 {[%clk 0:00:43.3]} 57... c3 {[%clk 0:00:07.3]} 58. Rc6
{[%clk 0:00:43.5]} 58... Kd3 {[%clk 0:00:07.6]} 59. Kf4 {[%clk 0:00:42.8]} 59...
d4 {[%clk 0:00:08.5]} 60. Ke5 {[%clk 0:00:43.7]} 60... Re2+ {[%clk 0:00:08.7]}
61. Kd5 {[%clk 0:00:43.9]} 61... c2 {[%clk 0:00:09.6]} 62. Rc4 {[%clk
0:00:43.8]} 62... Kd2 {[%clk 0:00:09.2]} 63. Rxd4+ {[%clk 0:00:44]} 63... Ke1
{[%clk 0:00:10]} 64. Rc4 {[%clk 0:00:41.5]} 64... Kd1 {[%clk 0:00:10.9]} 0-1

[Event "Early-Titled-Tuesday-Blitz-March-05-2024"]
[Site "Chess.com"]
[Date "2024.03.05"]
[Round "6"]
[White "GoValya"]
[Black "kinga2008"]
[Result "0-1"]
[WhiteElo "2237"]
[BlackElo "2408"]
[TimeControl "180+1"]
[EndTime "9:09:54 PST"]
[Termination "kinga2008 won on time"]

1. d4 {[%clk 0:03:00.9]} 1... d5 {[%clk 0:02:51.1]} 2. c4 {[%clk 0:02:59.7]}
2... c6 {[%clk 0:02:50.7]} 3. g3 {[%clk 0:02:59.2]} 3... Nf6 {[%clk 0:02:48.1]}
4. Bg2 {[%clk 0:02:59.4]} 4... e6 {[%clk 0:02:46.7]} 5. Nf3 {[%clk 0:02:59.6]}
5... Bb4+ {[%clk 0:02:46.2]} 6. Bd2 {[%clk 0:02:58.2]} 6... Bxd2+ {[%clk
0:02:45.8]} 7. Nbxd2 {[%clk 0:02:58.1]} 7... O-O {[%clk 0:02:46.3]} 8. O-O
{[%clk 0:02:58.7]} 8... Nbd7 {[%clk 0:02:43.8]} 9. Qc2 {[%clk 0:02:58.7]} 9...
Re8 {[%clk 0:02:42.4]} 10. e4 {[%clk 0:02:55.4]} 10... dxe4 {[%clk 0:02:40.7]}
11. Nxe4 {[%clk 0:02:55.9]} 11... Nxe4 {[%clk 0:02:40.3]} 12. Qxe4 {[%clk
0:02:56.8]} 12... Nf6 {[%clk 0:02:36.1]} 13. Qc2 {[%clk 0:02:55.6]} 13... Qc7
{[%clk 0:02:34.4]} 14. b4 {[%clk 0:02:51.4]} 14... Rd8 {[%clk 0:02:32.5]} 15. a4
{[%clk 0:02:50]} 15... b6 {[%clk 0:02:28.5]} 16. Ne5 {[%clk 0:02:45.8]} 16...
Bb7 {[%clk 0:02:25.9]} 17. Rfd1 {[%clk 0:02:43.1]} 17... Rac8 {[%clk 0:02:24.7]}
18. Rac1 {[%clk 0:02:33.6]} 18... c5 {[%clk 0:02:17.9]} 19. Bxb7 {[%clk
0:02:22.4]} 19... Qxb7 {[%clk 0:02:16.4]} 20. dxc5 {[%clk 0:02:22.3]} 20... bxc5
{[%clk 0:02:12.9]} 21. b5 {[%clk 0:02:19.4]} 21... Qc7 {[%clk 0:01:44.7]} 22.
Nc6 {[%clk 0:02:12.3]} 22... Rxd1+ {[%clk 0:01:41]} 23. Rxd1 {[%clk 0:02:13.2]}
23... Qb7 {[%clk 0:01:26.7]} 24. Qd2 {[%clk 0:02:07.6]} 24... h6 {[%clk
0:01:18.9]} 25. Qe3 {[%clk 0:02:06.6]} 25... Rxc6 {[%clk 0:01:06.9]} 26. Rd8+
{[%clk 0:01:44.2]} 26... Kh7 {[%clk 0:01:02.2]} 27. Qd3+ {[%clk 0:01:35.5]}
27... g6 {[%clk 0:00:59.5]} 28. bxc6 {[%clk 0:01:35.3]} 28... Qxc6 {[%clk
0:00:59.4]} 29. Qc3 {[%clk 0:01:06.6]} 29... Kg7 {[%clk 0:00:47.9]} 30. Rd3
{[%clk 0:01:00.1]} 30... Qxa4 {[%clk 0:00:33.6]} 31. Kg2 {[%clk 0:00:40.1]}
31... Qe8 {[%clk 0:00:17.5]} 32. Rf3 {[%clk 0:00:39]} 32... e5 {[%clk
0:00:17.9]} 33. Qe3 {[%clk 0:00:34.3]} 33... Nd7 {[%clk 0:00:17.2]} 34. g4
{[%clk 0:00:27.6]} 34... Qe6 {[%clk 0:00:16.5]} 35. h3 {[%clk 0:00:27.3]} 35...
Qxc4 {[%clk 0:00:16.8]} 36. g5 {[%clk 0:00:22.2]} 36... hxg5 {[%clk 0:00:14.4]}
37. Qxg5 {[%clk 0:00:20.7]} 37... e4 {[%clk 0:00:15]} 38. Rf4 {[%clk 0:00:20.1]}
38... Qe6 {[%clk 0:00:12.8]} 39. Qg3 {[%clk 0:00:19.5]} 39... c4 {[%clk
0:00:10.3]} 40. Qc3+ {[%clk 0:00:19]} 40... Nf6 {[%clk 0:00:08.5]} 41. h4 {[%clk
0:00:17.6]} 41... a6 {[%clk 0:00:04.1]} 42. Kg3 {[%clk 0:00:17.6]} 42... Qd6
{[%clk 0:00:03]} 43. Qb2 {[%clk 0:00:14.3]} 43... c3 {[%clk 0:00:01.8]} 44. Qxc3
{[%clk 0:00:14.2]} 44... Qe6 {[%clk 0:00:02.6]} 45. Qd4 {[%clk 0:00:13.7]} 45...
Qc6 {[%clk 0:00:03.1]} 46. Kg2 {[%clk 0:00:13.2]} 46... e3+ {[%clk 0:00:02.8]}
47. Kg1 {[%clk 0:00:10.5]} 47... e2 {[%clk 0:00:02.7]} 48. Qe3 {[%clk
0:00:10.1]} 48... Qe6 {[%clk 0:00:02.2]} 49. Qxe6 {[%clk 0:00:03]} 49... e1=Q+
{[%clk 0:00:03.1]} 50. Qxe1 {[%clk 0:00:02.5]} 50... g5 {[%clk 0:00:03.6]} 51.
Qc3 {[%clk 0:00:03]} 51... gxf4 {[%clk 0:00:04.5]} 52. h5 {[%clk 0:00:03.2]}
52... Kh6 {[%clk 0:00:04.1]} 0-1

[Event "Early-Titled-Tuesday-Blitz-March-05-2024"]
[Site "Chess.com"]
[Date "2024.03.05"]
[Round "6"]
[White "Njal28"]
[Black "Neijin"]
[Result "0-1"]
[WhiteElo "3004"]
[BlackElo "2731"]
[TimeControl "180+1"]
[EndTime "9:09:56 PST"]
[Termination "Neijin won by resignation"]

1. d4 {[%clk 0:02:58.1]} 1... d5 {[%clk 0:02:59.8]} 2. Nf3 {[%clk 0:02:58.4]}
2... Nf6 {[%clk 0:02:59.4]} 3. c3 {[%clk 0:02:59.3]} 3... Bf5 {[%clk 0:02:53.5]}
4. Qb3 {[%clk 0:02:59.3]} 4... Qc8 {[%clk 0:02:52.2]} 5. c4 {[%clk 0:02:59.1]}
5... e6 {[%clk 0:02:49.5]} 6. cxd5 {[%clk 0:02:58.6]} 6... exd5 {[%clk
0:02:49.5]} 7. Nc3 {[%clk 0:02:59.3]} 7... c6 {[%clk 0:02:49]} 8. Bf4 {[%clk
0:03:00]} 8... Be7 {[%clk 0:02:45.4]} 9. e3 {[%clk 0:03:00.6]} 9... O-O {[%clk
0:02:44.3]} 10. Rc1 {[%clk 0:03:01.3]} 10... Nbd7 {[%clk 0:02:22.8]} 11. Be2
{[%clk 0:03:01.7]} 11... Nb6 {[%clk 0:01:58.2]} 12. h3 {[%clk 0:03:01]} 12...
Qd8 {[%clk 0:01:50.8]} 13. O-O {[%clk 0:02:59.5]} 13... Bd6 {[%clk 0:01:50.8]}
14. Bxd6 {[%clk 0:02:57.7]} 14... Qxd6 {[%clk 0:01:50.7]} 15. a4 {[%clk
0:02:58.6]} 15... Qe7 {[%clk 0:01:33.5]} 16. a5 {[%clk 0:02:58.4]} 16... Nc8
{[%clk 0:01:34.2]} 17. a6 {[%clk 0:02:58.3]} 17... b6 {[%clk 0:01:23]} 18. Ne5
{[%clk 0:02:58.8]} 18... Qe6 {[%clk 0:01:04.2]} 19. Qa4 {[%clk 0:02:43.6]} 19...
Ne7 {[%clk 0:01:03.4]} 20. b4 {[%clk 0:02:31.8]} 20... Ne4 {[%clk 0:00:58.6]}
21. Nxe4 {[%clk 0:02:31.8]} 21... Bxe4 {[%clk 0:00:59]} 22. Nxc6 {[%clk
0:02:30.1]} 22... Nf5 {[%clk 0:00:48.6]} 23. Ne5 {[%clk 0:02:29.4]} 23... Nh4
{[%clk 0:00:46.6]} 24. f3 {[%clk 0:02:23.8]} 24... Bg6 {[%clk 0:00:47]} 25. Qd7
{[%clk 0:02:17.9]} 25... Qf6 {[%clk 0:00:40.4]} 26. Qg4 {[%clk 0:02:12.7]} 26...
Nf5 {[%clk 0:00:36.9]} 27. Qf4 {[%clk 0:02:02.4]} 27... Qe7 {[%clk 0:00:37.4]}
28. b5 {[%clk 0:01:56.2]} 28... f6 {[%clk 0:00:35.7]} 29. Nxg6 {[%clk
0:01:52.1]} 29... hxg6 {[%clk 0:00:36.6]} 30. Kf2 {[%clk 0:01:47.8]} 30... Rae8
{[%clk 0:00:35.6]} 31. Rc3 {[%clk 0:01:44.2]} 31... Qb4 {[%clk 0:00:21.8]} 32.
Rfc1 {[%clk 0:01:39.8]} 32... Re7 {[%clk 0:00:19.8]} 33. g4 {[%clk 0:01:33.2]}
33... Nd6 {[%clk 0:00:20.2]} 34. Rc7 {[%clk 0:01:29.5]} 34... Rxc7 {[%clk
0:00:18.3]} 35. Rxc7 {[%clk 0:01:30.4]} 35... Nxb5 {[%clk 0:00:19]} 36. Rb7
{[%clk 0:01:29.1]} 36... Qb2 {[%clk 0:00:13.5]} 37. Rb8 {[%clk 0:00:47.9]} 37...
Nc3 {[%clk 0:00:11.5]} 38. Rxf8+ {[%clk 0:00:48.2]} 38... Kxf8 {[%clk
0:00:12.1]} 39. Qb8+ {[%clk 0:00:49]} 39... Kf7 {[%clk 0:00:12.5]} 40. Qxa7+
{[%clk 0:00:49.7]} 40... Kg8 {[%clk 0:00:13.1]} 41. Qb8+ {[%clk 0:00:39.2]}
41... Kh7 {[%clk 0:00:12.6]} 42. a7 {[%clk 0:00:40.1]} 42... Qxe2+ {[%clk
0:00:12.7]} 43. Kg3 {[%clk 0:00:40.7]} 43... Qe1+ {[%clk 0:00:12.2]} 44. Kg2
{[%clk 0:00:39.1]} 44... Qe2+ {[%clk 0:00:12.5]} 45. Kg3 {[%clk 0:00:39.1]}
45... Qf1 {[%clk 0:00:06.2]} 46. Kh2 {[%clk 0:00:14.1]} 46... Qf2+ {[%clk
0:00:06.1]} 47. Kh1 {[%clk 0:00:14.3]} 47... Qxf3+ {[%clk 0:00:06.6]} 48. Kh2
{[%clk 0:00:14]} 48... Qe2+ {[%clk 0:00:06.9]} 49. Kh1 {[%clk 0:00:11.6]} 49...
Qf1+ {[%clk 0:00:06.7]} 50. Kh2 {[%clk 0:00:12]} 50... Qf2+ {[%clk 0:00:07.3]}
51. Kh1 {[%clk 0:00:12.1]} 51... Ne4 {[%clk 0:00:07]} 52. a8=Q {[%clk
0:00:10.3]} 52... Qf1+ {[%clk 0:00:07.4]} 53. Kh2 {[%clk 0:00:10.7]} 53... Qf2+
{[%clk 0:00:07.7]} 54. Kh1 {[%clk 0:00:11.4]} 54... Ng3+ {[%clk 0:00:07.6]} 55.
Qxg3 {[%clk 0:00:12.1]} 55... Qxg3 {[%clk 0:00:08.4]} 56. Qxd5 {[%clk 0:00:11]}
56... Qxh3+ {[%clk 0:00:09.1]} 57. Kg1 {[%clk 0:00:11.4]} 57... Qxe3+ {[%clk
0:00:10]} 58. Kh1 {[%clk 0:00:11.8]} 58... Qh3+ {[%clk 0:00:10.2]} 59. Kg1
{[%clk 0:00:12.2]} 59... Qxg4+ {[%clk 0:00:10.9]} 60. Kf1 {[%clk 0:00:11.9]}
60... Qf5+ {[%clk 0:00:11.3]} 61. Qf3 {[%clk 0:00:10.1]} 61... Qxf3+ {[%clk
0:00:11.2]} 0-1

[Event "Early-Titled-Tuesday-Blitz-March-05-2024"]
[Site "Chess.com"]
[Date "2024.03.05"]
[Round "6"]
[White "Penafiel-Josselyne02"]
[Black "DKmirl"]
[Result "0-1"]
[WhiteElo "2053"]
[BlackElo "2335"]
[TimeControl "180+1"]
[EndTime "9:09:57 PST"]
[Termination "DKmirl won on time"]

1. d4 {[%clk 0:03:00.9]} 1... Nf6 {[%clk 0:02:59.2]} 2. c4 {[%clk 0:02:44.8]}
2... e6 {[%clk 0:02:53.3]} 3. Nf3 {[%clk 0:02:43.5]} 3... Bb4+ {[%clk
0:02:42.4]} 4. Bd2 {[%clk 0:02:40.5]} 4... Qe7 {[%clk 0:02:41.9]} 5. e3 {[%clk
0:02:11.3]} 5... O-O {[%clk 0:02:33.9]} 6. Bd3 {[%clk 0:02:08.8]} 6... b6 {[%clk
0:02:22.6]} 7. O-O {[%clk 0:02:05.6]} 7... Bb7 {[%clk 0:02:22.7]} 8. Nc3 {[%clk
0:01:57.1]} 8... Bxc3 {[%clk 0:02:16.2]} 9. Bxc3 {[%clk 0:01:53.3]} 9... d6
{[%clk 0:02:06.6]} 10. Qc2 {[%clk 0:01:50.8]} 10... Nbd7 {[%clk 0:02:06.4]} 11.
e4 {[%clk 0:01:48.3]} 11... e5 {[%clk 0:02:06.7]} 12. b4 {[%clk 0:01:43.8]}
12... c5 {[%clk 0:01:17.8]} 13. bxc5 {[%clk 0:01:39.4]} 13... bxc5 {[%clk
0:01:17.5]} 14. d5 {[%clk 0:01:37.7]} 14... Nb6 {[%clk 0:01:13.8]} 15. a4 {[%clk
0:01:30.2]} 15... Ba6 {[%clk 0:01:12.7]} 16. Qe2 {[%clk 0:01:21]} 16... Nh5
{[%clk 0:01:11.6]} 17. g3 {[%clk 0:01:20.5]} 17... Rab8 {[%clk 0:01:00.2]} 18.
a5 {[%clk 0:01:07.8]} 18... Nd7 {[%clk 0:00:53.5]} 19. Rab1 {[%clk 0:01:02.7]}
19... Nhf6 {[%clk 0:00:46.4]} 20. Nh4 {[%clk 0:00:48.5]} 20... g6 {[%clk
0:00:39.9]} 21. Bd2 {[%clk 0:00:48]} 21... Rfc8 {[%clk 0:00:29.2]} 22. Ng2
{[%clk 0:00:23.5]} 22... Rxb1 {[%clk 0:00:25.7]} 23. Rxb1 {[%clk 0:00:23]} 23...
Rb8 {[%clk 0:00:25.9]} 24. Rxb8+ {[%clk 0:00:22.6]} 24... Nxb8 {[%clk
0:00:26.8]} 25. Bg5 {[%clk 0:00:17.5]} 25... Nbd7 {[%clk 0:00:26.3]} 26. Qb2
{[%clk 0:00:17.3]} 26... Qd8 {[%clk 0:00:25.1]} 27. Ne3 {[%clk 0:00:16.3]} 27...
Qxa5 {[%clk 0:00:24.6]} 28. Bh6 {[%clk 0:00:11.4]} 28... Qb4 {[%clk 0:00:21.7]}
29. Qa2 {[%clk 0:00:09.7]} 29... Qb6 {[%clk 0:00:20.6]} 30. Kg2 {[%clk
0:00:07.2]} 30... Bc8 {[%clk 0:00:17.8]} 31. Qa4 {[%clk 0:00:06.3]} 31... a5
{[%clk 0:00:15.3]} 32. Qc6 {[%clk 0:00:04.5]} 32... Bb7 {[%clk 0:00:07.8]} 33.
Qa4 {[%clk 0:00:03.8]} 33... Qb4 {[%clk 0:00:06]} 34. Qb5 {[%clk 0:00:02.9]}
34... Qxb5 {[%clk 0:00:06.2]} 35. cxb5 {[%clk 0:00:03.8]} 35... Nb6 {[%clk
0:00:06.3]} 36. Nc4 {[%clk 0:00:03.1]} 36... Nxc4 {[%clk 0:00:06.2]} 37. Bxc4
{[%clk 0:00:03.7]} 37... Nxe4 {[%clk 0:00:06.9]} 38. Bd2 {[%clk 0:00:02.8]}
38... Nxd2 {[%clk 0:00:07]} 39. f4 {[%clk 0:00:02.7]} 39... Nxc4 {[%clk
0:00:07.1]} 40. fxe5 {[%clk 0:00:02.7]} 40... Nxe5 {[%clk 0:00:08]} 41. Kf2
{[%clk 0:00:02.7]} 41... a4 {[%clk 0:00:08.9]} 42. Ke2 {[%clk 0:00:03.3]} 42...
a3 {[%clk 0:00:09.8]} 43. Kd2 {[%clk 0:00:04]} 43... a2 {[%clk 0:00:10.7]} 44.
Kc2 {[%clk 0:00:04.6]} 44... a1=Q {[%clk 0:00:11.6]} 45. Kb3 {[%clk 0:00:04.2]}
45... Qd4 {[%clk 0:00:10.5]} 46. b6 {[%clk 0:00:04.2]} 46... Nd3 {[%clk
0:00:09.9]} 47. Kc2 {[%clk 0:00:04.2]} 47... Qc4+ {[%clk 0:00:10]} 48. Kd2
{[%clk 0:00:04.5]} 48... Ne5 {[%clk 0:00:08.6]} 49. Ke3 {[%clk 0:00:04.8]} 49...
Qd3+ {[%clk 0:00:08.9]} 50. Kf2 {[%clk 0:00:05.2]} 50... Qf3+ {[%clk 0:00:09.8]}
51. Ke1 {[%clk 0:00:05.6]} 51... Nd3+ {[%clk 0:00:10]} 52. Kd2 {[%clk 0:00:06]}
52... Nb4 {[%clk 0:00:09.9]} 53. h4 {[%clk 0:00:03.9]} 53... Ba6 {[%clk
0:00:10.3]} 54. h5 {[%clk 0:00:03.1]} 54... Qd3+ {[%clk 0:00:10]} 0-1